[Event "58th Akiba Rubinstein B 2022"]
[Site "Polanica-Zdroj"]
[Date "2022.08.21"]
[Round "9.4"]
[White "Owoc, Jakub"]
[Black "Smukowski, Bartosz"]
[Result "0-1"]
[ECO "A05"]
[WhiteElo "1756"]
[BlackElo "1696"]
[Annotator "NA"]
[PlyCount "146"]
[EventDate "2022.08.13"]
[EventCountry "POL"]
[SourceTitle "playchess.com"]
[Source "ChessBase"]
[SourceQuality "1"]
[TimeControl "40/5400+30:1800+30"]

1. Nf3 {[%emt 0:00:03]} Nf6 {[%emt 0:00:04]} 2. b3 {[%emt 0:00:04]} g6 {[%emt 0:00:10]} 3. Bb2 {[%emt 0:00:05]} Bg7 {[%emt 0:00:05]} 4. g3 {[%emt 0:00:04]} b6 {[%emt 0:00:26]} 5. Bg2 {[%emt 0:03:14]} Bb7 {[%emt 0:00:03]} 6. d4 {[%emt 0:02:53]} c5 {[%emt 0:09:59]} 7. O-O {[%emt 0:08:07]} cxd4 {[%emt 0:07:37]} 8. Bxd4 {[%emt 0:03:19]} O-O {[%emt 0:04:32]} 9. Na3 {[%emt 0:09:29]} d6 {[%emt 0:03:47]} 10. c4 {[%emt 0:02:51]} Na6 {[%emt 0:02:52]} 11. Rc1 {[%emt 0:01:26]} Nc7 {[%emt 0:02:09]} 12. Re1 {[%emt 0:06:28]} Ne6 {[%emt 0:14:27]} 13. e3 {[%emt 0:09:56]} Rc8 {[%emt 0:11:15]} 14. Qe2 {[%emt 0:07:25]} Re8 {[%emt 0:08:20]} 15. b4 {[%emt 0:04:11]} Qd7 {[%emt 0:04:22]} 16. Qb2 {[%emt 0:03:38]} Nxd4 {[%emt 0:08:59]} 17. exd4 {[%emt 0:00:10]} a6 {[%emt 0:02:18]} 18. Qb3 {[%emt 0:03:10]} h6 {[%emt 0:06:27]} 19. Rcd1 {[%emt 0:02:55]} Qc7 {[%emt 0:01:08]} 20. h3 {[%emt 0:06:29]} e6 {[%emt 0:04:28]} 21. Rc1 {[%emt 0:00:29]} Qd7 {[%emt 0:00:55]} 22. Nc2 {[%emt 0:01:36]} Nh7 {[%emt 0:01:45]} 23. Rcd1 {[%emt 0:02:14]} Ng5 {[%emt 0:00:54]} 24. Nxg5 {[%emt 0:00:48]} hxg5 {[%emt 0:00:06]} 25. Bxb7 {[%emt 0:02:18]} Qxb7 {[%emt 0:00:06]} 26. Ne3 {[%emt 0:00:04]} Rc7 {[%emt 0:01:17]} 27. Qd3 {[%emt 0:04:30]} Rec8 {[%emt 0:02:03]} 28. Rc1 {[%emt 0:01:49]} Qf3 {[%emt 0:01:29]} 29. Qd1 {[%emt 0:04:14]} Qxd1 {[%emt 0:00:34]} 30. Rexd1 {[%emt 0:00:04]} Bf8 {[%emt 0:00:49]} 31. Kf1 {[%emt 0:01:44]} f5 {[%emt 0:00:57]} 32. Rd2 {[%emt 0:05:00]} f4 {[%emt 0:00:37]} 33. gxf4 {[%emt 0:00:03]} gxf4 {[%emt 0:00:08]} 34. Ng2 {[%emt 0:00:04]} Rxc4 {[%emt 0:00:21]} 35. Rxc4 {[%emt 0:00:03]} Rxc4 {[%emt 0:00:09]} 36. a3 {[%emt 0:01:05]} Rc3 {[%emt 0:00:20]} 37. a4 {[%emt 0:02:09]} Bh6 {[%emt 0:00:23]} 38. Ne1 {[%emt 0:02:10]} Rxh3 {[%emt 0:00:32]} 39. f3 {[%emt 0:00:50]} Rh1+ {[%emt 0:01:08]} 40. Kf2 {[%emt 0:00:00]} Bg5 {[%emt 0:00:00]} 41. Ke2 {[%emt 0:02:53]} Kf7 {[%emt 0:02:37]} 42. Rc2 {[%emt 0:00:43]} Rh2+ {[%emt 0:00:20]} 43. Kd3 {[%emt 0:00:09]} Rxc2 {[%emt 0:01:37]} 44. Nxc2 {[%emt 0:00:16]} d5 {[%emt 0:00:34]} 45. b5 {[%emt 0:04:32]} axb5 {[%emt 0:02:22]} 46. axb5 {[%emt 0:00:06]} Be7 {[%emt 0:00:02]} 47. Ke2 {[%emt 0:00:11]} Kf6 {[%emt 0:00:09]} 48. Ne1 {[%emt 0:00:06]} Kf5 {[%emt 0:02:27]} 49. Nd3 {[%emt 0:02:28]} Bd6 {[%emt 0:00:20]} 50. Nf2 {[%emt 0:00:12]} e5 {[%emt 0:01:04]} 51. Kd3 {[%emt 0:00:13]} g5 {[%emt 0:00:51]} 52. dxe5 {[%emt 0:00:08]} Bxe5 {[%emt 0:00:19]} 53. Ng4 {[%emt 0:00:06]} Bb2 {[%emt 0:00:58]} 54. Nh6+ {[%emt 0:00:07]} Kg6 {[%emt 0:01:10]} 55. Ng4 {[%emt 0:00:05]} Kh5 {[%emt 0:00:35]} 56. Ke2 {[%emt 0:00:08]} Kh4 {[%emt 0:02:10]} 57. Nh6 {[%emt 0:00:09]} Kh3 {[%emt 0:02:40]} 58. Nf5 {[%emt 0:00:49]} Bf6 {[%emt 0:03:45]} 59. Kf2 {[%emt 0:00:50]} g4 {[%emt 0:00:31]} 60. fxg4 {[%emt 0:02:11]} Kxg4 {[%emt 0:00:25]} 61. Nd6 {[%emt 0:00:34]} Bd4+ {[%emt 0:00:22]} 62. Kf1 {[%emt 0:00:11]} Kf3 {[%emt 0:00:47]} 63. Nc8 {[%emt 0:00:34]} Bc5 {[%emt 0:01:04]} 64. Na7 {[%emt 0:00:07]} d4 {[%emt 0:00:23]} 65. Nc6 {[%emt 0:00:05]} d3 {[%emt 0:00:24]} 66. Ne5+ {[%emt 0:00:22]} Ke4 {[%emt 0:00:59]} 67. Nc4 {[%emt 0:00:03]} Be3 {[%emt 0:00:37]} 68. Ke1 {[%emt 0:00:33]} d2+ {[%emt 0:01:05]} 69. Kd1 {[%emt 0:00:20]} Kf3 {[%emt 0:01:44]} 70. Ne5+ {[%emt 0:00:05]} Kg3 {[%emt 0:00:23]} 71. Nc4 {[%emt 0:00:11]} Kg2 {[%emt 0:00:45]} 72. Ke2 {[%emt 0:00:25]} f3+ {[%emt 0:00:27]} 73. Kd1 {[%emt 0:00:05]} Bf4 {[%emt 0:00:10]} 0-1

[Event "58th Akiba Rubinstein B 2022"]
[Site "Polanica-Zdroj"]
[Date "2022.08.21"]
[Round "9.5"]
[White "Twardowski, Hubert"]
[Black "Kossowski, Pawel"]
[Result "0-1"]
[ECO "C48"]
[WhiteElo "1849"]
[BlackElo "1737"]
[Annotator "NA RC"]
[PlyCount "148"]
[EventDate "2022.08.13"]
[EventCountry "POL"]
[SourceTitle "playchess.com"]
[Source "ChessBase"]
[SourceQuality "1"]
[TimeControl "40/5400+30:1800+30"]

1. e4 {[%emt 0:00:03]} e5 {[%emt 0:00:35]} 2. Nf3 {[%emt 0:00:06]} Nc6 {[%emt 0:00:05]} 3. Nc3 {[%emt 0:00:03]} Nf6 {[%emt 0:00:20]} 4. Bb5 {[%emt 0:00:11]} Nd4 {[%emt 0:00:32]} 5. O-O {[%emt 0:00:14]} c6 {[%emt 0:01:48]} 6. Bd3 {[%emt 0:10:02]} Nxf3+ {[%emt 0:04:12]} 7. Qxf3 {[%emt 0:00:55]} d6 {[%emt 0:00:40]} 8. a4 {[%emt 0:07:41]} a5 {[%emt 0:02:52]} 9. Bc4 {[%emt 0:03:29]} Be7 {[%emt 0:02:36]} 10. d3 {[%emt 0:01:13]} O-O {[%emt 0:01:42]} 11. Qe2 {[%emt 0:02:32]} Bg4 {[%emt 0:02:53]} 12. f3 {[%emt 0:00:52]} Be6 {[%emt 0:00:10]} 13. Bxe6 {[%emt 0:06:27]} fxe6 {[%emt 0:00:07]} 14. f4 {[%emt 0:00:11]} exf4 {[%emt 0:00:30]} 15. Rxf4 {[%emt 0:00:11]} e5 {[%emt 0:01:10]} 16. Rf5 {[%emt 0:05:30]} Qb6+ {[%emt 0:08:12]} 17. Kh1 {[%emt 0:00:24]} Nd7 {[%emt 0:03:39]} 18. Rxf8+ {[%emt 0:11:42]} Rxf8 {[%emt 0:00:29]} 19. Nd1 {[%emt 0:00:06]} Nc5 {[%emt 0:28:45]} 20. Ne3 {[%emt 0:20:01]} Ne6 {[%emt 0:06:00]} 21. Nf5 {[%emt 0:01:35]} Qd8 {[%emt 0:02:13]} 22. Be3 {[%emt 0:06:50]} Bg5 {[%emt 0:05:27]} 23. Bxg5 {[%emt 0:01:43]} Qxg5 {[%emt 0:00:51]} 24. h4 {[%emt 0:05:44]} Qf6 {[%emt 0:01:39]} 25. Qg4 {[%emt 0:01:01]} Nd4 {[%emt 0:06:33]} 26. Nxd4 {[%emt 0:07:41]} exd4 {[%emt 0:00:13]} 27. Re1 {[%emt 0:04:20]} h6 {[%emt 0:06:49]} 28. h5 {[%emt 0:01:19]} Qf2 {[%emt 0:02:30]} 29. Qe2 {[%emt 0:00:50]} Rf4 {[%emt 0:01:17]} 30. Qxf2 {[%emt 0:00:31]} Rxf2 {[%emt 0:00:05]} 31. e5 {[%emt 0:00:27]} dxe5 {[%emt 0:00:06]} 32. Rxe5 {[%emt 0:00:06]} Rxc2 {[%emt 0:00:07]} 33. Rxa5 {[%emt 0:01:21]} Rxb2 {[%emt 0:00:07]} 34. Ra7 {[%emt 0:00:58]} Kf7 {[%emt 0:02:24]} 35. Kg1 {[%emt 0:00:16]} Kf6 {[%emt 0:00:15]} 36. Kf1 {[%emt 0:00:09]} Kg5 {[%emt 0:00:18]} 37. a5 {[%emt 0:00:04]} Kxh5 {[%emt 0:03:44]} 38. a6 {[%emt 0:00:14]} bxa6 {[%emt 0:00:28]} 39. Rxg7 {[%emt 0:00:08]} c5 {[%emt 0:01:32]} 40. Ra7 {[%emt 0:00:00]} Ra2 {[%emt 0:00:00]} 41. Rc7 {[%emt 0:02:38]} Rc2 {[%emt 0:04:50]} 42. Ra7 {[%emt 0:01:00]} Ra2 {[%emt 0:04:29]} 43. Rc7 {[%emt 0:00:19]} Ra5 {[%emt 0:00:07]} 44. Rc6 {[%emt 0:13:46]} Kg5 {[%emt 0:00:59]} 45. Kf2 {[%emt 0:01:20]} h5 {[%emt 0:00:41]} 46. Kf3 {[%emt 0:04:25]} h4 {[%emt 0:07:04]} 47. Rd6 {[%emt 0:09:16]} Kf5 {[%emt 0:04:41]} 48. Rd5+ {[%emt 0:00:11]} Ke6 {[%emt 0:00:41]} 49. Rh5 {[%emt 0:00:17]} Ra3 {[%emt 0:01:59]} 50. Rxc5 {[%emt 0:04:15]} Rxd3+ {[%emt 0:00:40]} 51. Ke4 {[%emt 0:00:35]} Ra3 {[%emt 0:03:33]} 52. Rc6+ {[%emt 0:00:37]} Kf7 {[%emt 0:00:15]} 53. Rh6 {[%emt 0:00:32]} d3 {[%emt 0:01:40]} 54. Ke3 {[%emt 0:00:22]} Ra4 {[%emt 0:00:39]} 55. Kxd3 {[%emt 0:00:13]} Kg7 {[%emt 0:00:18]} 56. Rb6 {[%emt 0:00:21]} a5 {[%emt 0:01:43]} 57. Ke3 {[%emt 0:01:02]} Kf7 {[%emt 0:01:26]} 58. Ra6 {[%emt 0:00:15]} Ke7 {[%emt 0:00:25]} 59. Kf3 {[%emt 0:00:12]} Kd7 {[%emt 0:00:13]} 60. Ke3 {[%emt 0:00:38]} Kc7 {[%emt 0:00:16]} 61. Kf3 {[%emt 0:00:15]} Kb7 {[%emt 0:00:07]} 62. Rh6 {[%emt 0:00:50]} Rb4 {[%emt 0:00:16]} 63. Ke3 {[%emt 0:00:46]} a4 {[%emt 0:00:42]} 64. Rf6 {[%emt 0:00:35]} a3 {[%emt 0:00:22]} 65. Rf2 {[%emt 0:00:33]} Rb2 {[%emt 0:01:03]} 66. Rf4 {[%emt 0:00:05]} a2 {[%emt 0:00:42]} 67. Ra4 {[%emt 0:00:24]} Rxg2 {[%emt 0:00:21]} 68. Kf3 {[%emt 0:00:04]} h3 {[%emt 0:00:12]} 69. Ra3 {[%emt 0:00:29]} Kb6 {[%emt 0:00:39]} 70. Ra4 {[%emt 0:00:04]} Kb5 {[%emt 0:00:11]} 71. Ra8 {[%emt 0:00:03]} Kb4 {[%emt 0:00:13]} 72. Ra7 {[%emt 0:00:08]} Kb3 {[%emt 0:00:08]} 73. Rb7+ {[%emt 0:00:03]} Kc2 {[%emt 0:00:15]} 74. Ra7 {[%emt 0:00:28]} Kb1 {[%emt 0:00:08]} 0-1

[Event "58th Akiba Rubinstein B 2022"]
[Site "Polanica-Zdroj"]
[Date "2022.08.21"]
[Round "9.6"]
[White "Nowak, Roksana"]
[Black "Buchholz, Maja"]
[Result "1/2-1/2"]
[ECO "C11"]
[WhiteElo "1779"]
[BlackElo "1879"]
[Annotator "NA RC"]
[PlyCount "82"]
[EventDate "2022.08.13"]
[EventCountry "POL"]
[SourceTitle "playchess.com"]
[Source "ChessBase"]
[SourceQuality "1"]
[TimeControl "40/5400+30:1800+30"]

1. e4 {[%emt 0:00:03]} e6 {[%emt 0:00:05]} 2. d4 {[%emt 0:00:04]} d5 {[%emt 0:00:07]} 3. Nc3 {[%emt 0:00:24]} Nf6 {[%emt 0:00:18]} 4. Bg5 {[%emt 0:00:30]} h6 {[%emt 0:02:44]} 5. Bxf6 {[%emt 0:03:53]} Qxf6 {[%emt 0:00:29]} 6. exd5 {[%emt 0:02:34]} Bb4 {[%emt 0:00:20]} 7. Nf3 {[%emt 0:08:01]} exd5 {[%emt 0:01:15]} 8. Qd2 {[%emt 0:02:53]} Be6 {[%emt 0:02:27]} 9. a3 {[%emt 0:00:43]} Be7 {[%emt 0:11:54]} 10. Nb5 {[%emt 0:02:22]} Na6 {[%emt 0:00:43]} 11. Nc3 {[%emt 0:03:44]} O-O {[%emt 0:02:04]} 12. Bxa6 {[%emt 0:04:58]} bxa6 {[%emt 0:00:05]} 13. Ne2 {[%emt 0:00:06]} Rab8 {[%emt 0:01:16]} 14. b3 {[%emt 0:01:24]} Bd6 {[%emt 0:08:42]} 15. O-O {[%emt 0:02:38]} Rfe8 {[%emt 0:05:39]} 16. Ng3 {[%emt 0:06:57]} Bg4 {[%emt 0:10:00]} 17. Ne1 {[%emt 0:05:54]} c5 {[%emt 0:07:34]} 18. h3 {[%emt 0:07:30]} Be6 {[%emt 0:00:52]} 19. Nf3 {[%emt 0:03:43]} Rec8 {[%emt 0:11:40]} 20. Qe2 {[%emt 0:14:54]} cxd4 {[%emt 0:03:59]} 21. Nh5 {[%emt 0:02:27]} Qg6 {[%emt 0:01:45]} 22. Nh4 {[%emt 0:04:09]} Qg5 {[%emt 0:02:25]} 23. g3 {[%emt 0:01:39]} Bxh3 {[%emt 0:00:29]} 24. Ng2 {[%emt 0:00:18]} Rb6 {[%emt 0:03:25]} 25. Nhf4 {[%emt 0:05:42]} Bxf4 {[%emt 0:01:04]} 26. Nxf4 {[%emt 0:00:25]} Bxf1 {[%emt 0:00:10]} 27. Kxf1 {[%emt 0:00:27]} Rbc6 {[%emt 0:01:01]} 28. Rc1 {[%emt 0:00:44]} Qf5 {[%emt 0:00:27]} 29. b4 {[%emt 0:02:02]} Rxc2 {[%emt 0:00:53]} 30. Rxc2 {[%emt 0:00:07]} Rxc2 {[%emt 0:00:16]} 31. Qd1 {[%emt 0:01:21]} Rc4 {[%emt 0:02:07]} 32. Nd3 {[%emt 0:01:00]} Qe4 {[%emt 0:00:41]} 33. Qd2 {[%emt 0:00:59]} Rc3 {[%emt 0:01:24]} 34. Ne1 {[%emt 0:00:46]} Rxa3 {[%emt 0:00:32]} 35. Qc1 {[%emt 0:00:49]} Ra2 {[%emt 0:00:46]} 36. Kg1 {[%emt 0:01:25]} Qe2 {[%emt 0:00:31]} 37. Qc8+ {[%emt 0:00:09]} Kh7 {[%emt 0:00:42]} 38. Qf5+ {[%emt 0:00:05]} g6 {[%emt 0:00:39]} 39. Qxf7+ {[%emt 0:00:06]} Kh8 {[%emt 0:00:05]} 40. Qf8+ {[%emt 0:00:00]} Kh7 {[%emt 0:00:00]} 41. Qf7+ {[%emt 0:00:09]} Kh8 {[%emt 0:00:16]} 1/2-1/2

[Event "58th Akiba Rubinstein B 2022"]
[Site "Polanica-Zdroj"]
[Date "2022.08.21"]
[Round "9.7"]
[White "Graff, Slawomir"]
[Black "Rogala, Milosz"]
[Result "0-1"]
[ECO "D10"]
[WhiteElo "1782"]
[BlackElo "1837"]
[Annotator "NA RC"]
[PlyCount "46"]
[EventDate "2022.08.13"]
[EventCountry "POL"]
[SourceTitle "playchess.com"]
[Source "ChessBase"]
[SourceQuality "1"]
[TimeControl "40/5400+30:1800+30"]

1. d4 {[%emt 0:00:08]} d5 {[%emt 0:00:12]} 2. c4 {[%emt 0:00:05]} c6 {[%emt 0:00:15]} 3. cxd5 {[%emt 0:00:08]} cxd5 {[%emt 0:00:02]} 4. Nf3 {[%emt 0:00:10]} Nc6 {[%emt 0:00:33]} 5. Nc3 {[%emt 0:00:09]} a6 {[%emt 0:01:36]} 6. a3 {[%emt 0:02:38]} Nf6 {[%emt 0:00:50]} 7. Bf4 {[%emt 0:00:17]} g6 {[%emt 0:01:58]} 8. e3 {[%emt 0:01:35]} Bg7 {[%emt 0:00:08]} 9. Bd3 {[%emt 0:00:49]} O-O {[%emt 0:01:15]} 10. h3 {[%emt 0:02:00]} Kh8 {[%emt 0:04:27]} 11. O-O {[%emt 0:01:06]} Bf5 {[%emt 0:00:53]} 12. Bxf5 {[%emt 0:06:09]} gxf5 {[%emt 0:00:02]} 13. Ne5 {[%emt 0:01:42]} e6 {[%emt 0:03:20]} 14. Nxc6 {[%emt 0:02:25]} bxc6 {[%emt 0:00:02]} 15. Be5 {[%emt 0:00:58]} Rg8 {[%emt 0:00:51]} 16. f4 {[%emt 0:09:15]} Nd7 {[%emt 0:03:54]} 17. Bxg7+ {[%emt 0:02:08]} Rxg7 {[%emt 0:00:12]} 18. Qh5 {[%emt 0:04:51]} Qf6 {[%emt 0:05:01]} 19. Kh2 {[%emt 0:10:10]} Rag8 {[%emt 0:04:29]} 20. Rf2 {[%emt 0:09:05]} Rg3 {[%emt 0:03:05]} 21. Re1 {[%emt 0:07:08]} Qg7 {[%emt 0:02:24]} 22. Qe2 {[%emt 0:02:38]} Nf6 {[%emt 0:05:05]} 23. Rg1 {[%emt 0:01:52]} Rxh3+ {[%emt 0:00:11]} 0-1

[Event "58th Akiba Rubinstein B 2022"]
[Site "Polanica-Zdroj"]
[Date "2022.08.21"]
[Round "9.9"]
[White "Jankowski, Aleksander"]
[Black "Rylski, Tadeusz"]
[Result "1/2-1/2"]
[ECO "D11"]
[WhiteElo "1715"]
[BlackElo "1794"]
[Annotator "NA"]
[PlyCount "137"]
[EventDate "2022.08.13"]
[EventCountry "POL"]
[SourceTitle "playchess.com"]
[Source "ChessBase"]
[SourceQuality "1"]
[TimeControl "40/5400+30:1800+30"]

1. d4 {[%emt 0:00:03]} d5 {[%emt 0:00:17]} 2. c4 {[%emt 0:00:17]} c6 {[%emt 0:00:07]} 3. Nf3 {[%emt 0:00:05]} Nf6 {[%emt 0:00:07]} 4. g3 {[%emt 0:00:07]} Bf5 {[%emt 0:00:43]} 5. Nc3 {[%emt 0:00:09]} h6 {[%emt 0:08:24]} 6. cxd5 {[%emt 0:04:06]} Nxd5 {[%emt 0:08:50]} 7. Qb3 {[%emt 0:03:26]} Qb6 {[%emt 0:06:43]} 8. Nxd5 {[%emt 0:02:12]} Qxb3 {[%emt 0:00:59]} 9. Nc7+ {[%emt 0:01:03]} Kd8 {[%emt 0:00:25]} 10. axb3 {[%emt 0:00:05]} Kxc7 {[%emt 0:00:06]} 11. Bf4+ {[%emt 0:00:25]} Kc8 {[%emt 0:04:42]} 12. Bg2 {[%emt 0:03:52]} g5 {[%emt 0:02:18]} 13. Bd2 {[%emt 0:07:30]} Bg7 {[%emt 0:02:14]} 14. Bc3 {[%emt 0:08:48]} Nd7 {[%emt 0:04:13]} 15. O-O {[%emt 0:01:42]} Be4 {[%emt 0:09:49]} 16. Rfc1 {[%emt 0:05:59]} Nf6 {[%emt 0:08:29]} 17. Ne5 {[%emt 0:04:41]} Bxg2 {[%emt 0:02:15]} 18. Kxg2 {[%emt 0:00:07]} Rf8 {[%emt 0:06:20]} 19. Nc4 {[%emt 0:02:16]} Kd7 {[%emt 0:06:47]} 20. f3 {[%emt 0:04:06]} Nd5 {[%emt 0:03:40]} 21. e4 {[%emt 0:01:35]} Nxc3 {[%emt 0:03:40]} 22. bxc3 {[%emt 0:00:02]} Rfd8 {[%emt 0:01:07]} 23. Ne3 {[%emt 0:04:33]} e6 {[%emt 0:00:49]} 24. Rc2 {[%emt 0:02:27]} a6 {[%emt 0:02:11]} 25. Rd1 {[%emt 0:02:37]} Rac8 {[%emt 0:02:01]} 26. c4 {[%emt 0:02:22]} Ke8 {[%emt 0:07:18]} 27. Rcd2 {[%emt 0:01:03]} Rd7 {[%emt 0:00:47]} 28. d5 cxd5 {[%emt 0:00:10]} 29. exd5 {[%emt 0:03:19]} b5 {[%emt 0:01:33]} 30. dxe6 {[%emt 0:00:56]} Rxd2+ {[%emt 0:00:32]} 31. Rxd2 {[%emt 0:00:01]} fxe6 {[%emt 0:00:02]} 32. Rd6 {[%emt 0:03:14]} Ke7 {[%emt 0:02:51]} 33. Rxa6 {[%emt 0:00:14]} Bd4 {[%emt 0:01:01]} 34. Nc2 {[%emt 0:01:21]} Bb2 {[%emt 0:03:42]} 35. Ra2 {[%emt 0:00:11]} Bf6 {[%emt 0:00:11]} 36. cxb5 {[%emt 0:01:19]} Rb8 {[%emt 0:01:05]} 37. Ra7+ {[%emt 0:00:09]} Kd6 {[%emt 0:00:17]} 38. Na3 {[%emt 0:00:17]} Kc5 {[%emt 0:00:59]} 39. Ra4 {[%emt 0:08:24]} Rd8 {[%emt 0:01:35]} 40. Rc4+ {[%emt 0:00:00]} Kd5 {[%emt 0:00:00]} 41. Nc2 {[%emt 0:11:46]} Rb8 {[%emt 0:05:26]} 42. Ne3+ {[%emt 0:01:35]} Kd6 {[%emt 0:02:19]} 43. Rc6+ {[%emt 0:12:26]} Kd7 {[%emt 0:00:20]} 44. Nc4 {[%emt 0:00:53]} Rxb5 {[%emt 0:00:54]} 45. Rd6+ {[%emt 0:00:08]} Ke7 {[%emt 0:00:24]} 46. Rb6 {[%emt 0:00:09]} Rxb6 {[%emt 0:00:26]} 47. Nxb6 {[%emt 0:00:05]} Kd6 {[%emt 0:00:40]} 48. Kf1 {[%emt 0:00:27]} Kc6 {[%emt 0:01:24]} 49. Nc4 {[%emt 0:00:20]} Kc5 {[%emt 0:02:14]} 50. Ke2 {[%emt 0:00:58]} Kd4 {[%emt 0:04:30]} 51. Nd2 {[%emt 0:01:28]} Be7 {[%emt 0:00:41]} 52. Ne4 {[%emt 0:02:39]} g4 {[%emt 0:01:49]} 53. Nd2 {[%emt 0:01:06]} gxf3+ {[%emt 0:00:35]} 54. Kxf3 {[%emt 0:00:45]} e5 {[%emt 0:02:31]} 55. Ne4 {[%emt 0:04:19]} h5 {[%emt 0:01:18]} 56. h3 {[%emt 0:00:16]} Kd3 {[%emt 0:00:42]} 57. Nf2+ {[%emt 0:03:56]} Kd4 {[%emt 0:00:09]} 58. Ne4 {[%emt 0:03:17]} Kd3 {[%emt 0:00:32]} 59. g4 {[%emt 0:02:06]} hxg4+ {[%emt 0:00:09]} 60. hxg4 {[%emt 0:00:01]} Kd4 {[%emt 0:00:21]} 61. b4 {[%emt 0:01:59]} Bxb4 {[%emt 0:01:07]} 62. g5 {[%emt 0:00:09]} Bf8 {[%emt 0:01:05]} 63. g6 {[%emt 0:00:58]} Bh6 {[%emt 0:06:45]} 64. Nd6 {[%emt 0:01:19]} e4+ {[%emt 0:01:24]} 65. Nxe4 {[%emt 0:01:20]} Ke5 {[%emt 0:00:38]} 66. Nf2 {[%emt 0:00:29]} Kf6 {[%emt 0:00:14]} 67. Ng4+ {[%emt 0:00:05]} Kxg6 {[%emt 0:00:05]} 68. Nxh6 {[%emt 0:00:05]} Kxh6 {[%emt 0:00:05]} 69. Ke4 1/2-1/2

[Event "58th Akiba Rubinstein B 2022"]
[Site "Polanica-Zdroj"]
[Date "2022.08.21"]
[Round "9.10"]
[White "Lukasik, Zuzanna"]
[Black "Sypien, Natan"]
[Result "1/2-1/2"]
[ECO "B34"]
[WhiteElo "1700"]
[BlackElo "1780"]
[Annotator "NA RC"]
[PlyCount "83"]
[EventDate "2022.08.13"]
[EventCountry "POL"]
[SourceTitle "playchess.com"]
[Source "ChessBase"]
[SourceQuality "1"]
[TimeControl "40/5400+30:1800+30"]

1. e4 {[%emt 0:00:02]} c5 {[%emt 0:00:09]} 2. Nf3 {[%emt 0:00:34]} Nc6 {[%emt 0:00:11]} 3. d4 {[%emt 0:00:50]} cxd4 {[%emt 0:00:02]} 4. Nxd4 {[%emt 0:00:16]} Nf6 {[%emt 0:00:03]} 5. Nc3 {[%emt 0:00:30]} e5 {[%emt 0:00:02]} 6. Nf5 {[%emt 0:00:29]} d5 {[%emt 0:12:30]} 7. exd5 {[%emt 0:01:33]} Bxf5 {[%emt 0:01:12]} 8. dxc6 {[%emt 0:00:14]} Qxd1+ {[%emt 0:02:10]} 9. Nxd1 {[%emt 0:00:11]} bxc6 {[%emt 0:01:42]} 10. Ne3 {[%emt 0:00:37]} Bg6 {[%emt 0:08:23]} 11. Bc4 {[%emt 0:12:34]} Bc5 {[%emt 0:01:57]} 12. Bb3 {[%emt 0:01:13]} O-O {[%emt 0:08:13]} 13. O-O {[%emt 0:02:40]} Rfd8 {[%emt 0:10:21]} 14. Nc4 {[%emt 0:16:32]} Ne4 {[%emt 0:01:37]} 15. Be3 {[%emt 0:08:30]} Bxe3 {[%emt 0:00:11]} 16. fxe3 {[%emt 0:02:05]} Nd2 {[%emt 0:01:15]} 17. Nxd2 {[%emt 0:01:51]} Rxd2 {[%emt 0:00:11]} 18. Rf2 {[%emt 0:00:30]} Rad8 {[%emt 0:00:53]} 19. Raf1 {[%emt 0:00:38]} Rxf2 {[%emt 0:01:22]} 20. Rxf2 {[%emt 0:00:12]} Rd1+ {[%emt 0:00:20]} 21. Rf1 {[%emt 0:00:07]} Rd2 {[%emt 0:00:12]} 22. Rf2 {[%emt 0:00:23]} Rd1+ {[%emt 0:04:03]} 23. Rf1 {[%emt 0:00:06]} Rd6 {[%emt 0:00:03]} 24. Rf2 {[%emt 0:00:43]} Kf8 {[%emt 0:00:28]} 25. h3 {[%emt 0:01:03]} f6 {[%emt 0:00:46]} 26. c3 {[%emt 0:04:30]} Ke7 {[%emt 0:08:14]} 27. Kf1 {[%emt 0:02:09]} h6 {[%emt 0:00:57]} 28. Ke1 {[%emt 0:01:35]} Be4 {[%emt 0:01:09]} 29. Bc2 {[%emt 0:05:24]} Bd5 {[%emt 0:08:12]} 30. b3 {[%emt 0:02:10]} c5 {[%emt 0:00:39]} 31. c4 {[%emt 0:01:41]} Bc6 {[%emt 0:02:02]} 32. g4 {[%emt 0:05:58]} Rd8 {[%emt 0:03:40]} 33. h4 {[%emt 0:11:50]} Rh8 {[%emt 0:00:46]} 34. h5 {[%emt 0:01:53]} Rd8 {[%emt 0:01:22]} 35. Bf5 {[%emt 0:07:15]} a5 {[%emt 0:00:19]} 36. Rd2 {[%emt 0:01:45]} Rb8 {[%emt 0:16:03]} 37. Kd1 {[%emt 0:02:47]} a4 {[%emt 0:00:06]} 38. Kc2 {[%emt 0:00:16]} a3 {[%emt 0:00:07]} 39. Kc3 {[%emt 0:00:06]} Rb6 {[%emt 0:00:43]} 40. Rd1 {[%emt 0:00:00]} Rb8 {[%emt 0:00:00]} 41. Rb1 {[%emt 0:04:22]} Rb4 {[%emt 0:00:07]} 42. Rd1 {[%emt 0:00:08]} 1/2-1/2

[Event "58th Akiba Rubinstein B 2022"]
[Site "Polanica-Zdroj"]
[Date "2022.08.21"]
[Round "9.11"]
[White "Hury, Tymoteusz"]
[Black "Bartlomowicz, Jakub"]
[Result "1/2-1/2"]
[ECO "B23"]
[WhiteElo "1679"]
[BlackElo "1922"]
[Annotator "NA RC"]
[PlyCount "86"]
[EventDate "2022.08.13"]
[EventCountry "POL"]
[SourceTitle "playchess.com"]
[Source "ChessBase"]
[SourceQuality "1"]
[TimeControl "40/5400+30:1800+30"]

1. e4 {[%emt 0:00:01]} c5 {[%emt 0:00:03]} 2. Nc3 {[%emt 0:00:04]} Nc6 {[%emt 0:00:04]} 3. f4 {[%emt 0:00:20]} g6 {[%emt 0:00:04]} 4. Nf3 {[%emt 0:00:39]} Bg7 {[%emt 0:00:05]} 5. Bb5 {[%emt 0:00:52]} Nd4 {[%emt 0:00:14]} 6. O-O {[%emt 0:01:27]} Nxb5 {[%emt 0:02:58]} 7. Nxb5 {[%emt 0:00:06]} a6 {[%emt 0:00:08]} 8. Nc3 {[%emt 0:03:29]} d6 {[%emt 0:01:30]} 9. d3 {[%emt 0:03:53]} Nf6 {[%emt 0:00:26]} 10. Qe2 {[%emt 0:12:01]} O-O {[%emt 0:00:48]} 11. Bd2 {[%emt 0:03:51]} b5 {[%emt 0:05:46]} 12. Rae1 {[%emt 0:03:40]} b4 {[%emt 0:02:22]} 13. Nd1 {[%emt 0:02:19]} e5 {[%emt 0:05:13]} 14. fxe5 {[%emt 0:20:06]} dxe5 {[%emt 0:00:02]} 15. Qf2 {[%emt 0:14:47]} Qd6 {[%emt 0:03:59]} 16. Ne3 {[%emt 0:02:44]} Be6 {[%emt 0:00:50]} 17. Ng5 {[%emt 0:03:53]} h6 {[%emt 0:01:01]} 18. Nxe6 {[%emt 0:00:47]} Qxe6 {[%emt 0:00:04]} 19. Nc4 {[%emt 0:02:13]} Rac8 {[%emt 0:01:00]} 20. h3 {[%emt 0:03:27]} Nd7 {[%emt 0:01:38]} 21. Qh4 {[%emt 0:01:43]} Kh7 {[%emt 0:05:19]} 22. g4 {[%emt 0:04:29]} Rh8 {[%emt 0:01:06]} 23. Rf2 {[%emt 0:00:52]} Kg8 {[%emt 0:01:50]} 24. Ref1 {[%emt 0:00:32]} Rf8 {[%emt 0:00:05]} 25. Rf3 {[%emt 0:02:22]} h5 {[%emt 0:04:54]} 26. g5 {[%emt 0:00:41]} f5 {[%emt 0:00:48]} 27. gxf6 {[%emt 0:02:26]} Rxf6 {[%emt 0:00:13]} 28. Be3 {[%emt 0:04:51]} Rxf3 {[%emt 0:05:29]} 29. Rxf3 {[%emt 0:00:09]} Bf6 {[%emt 0:00:10]} 30. Bg5 {[%emt 0:03:35]} Kg7 {[%emt 0:01:24]} 31. Bxf6+ {[%emt 0:00:14]} Nxf6 {[%emt 0:00:02]} 32. Qg5 {[%emt 0:00:42]} Nd7 {[%emt 0:04:35]} 33. Rg3 {[%emt 0:00:57]} Qf6 {[%emt 0:01:38]} 34. Qe3 {[%emt 0:01:18]} Rf8 {[%emt 0:00:10]} 35. Qe2 {[%emt 0:00:26]} Qf4 {[%emt 0:02:48]} 36. Kg2 {[%emt 0:01:30]} Kh6 {[%emt 0:02:11]} 37. Ne3 {[%emt 0:00:48]} Nb6 {[%emt 0:00:36]} 38. b3 {[%emt 0:00:41]} Qh4 {[%emt 0:00:33]} 39. Rf3 {[%emt 0:00:21]} Rf4 {[%emt 0:00:43]} 40. Rg3 {[%emt 0:00:00]} Qf6 {[%emt 0:00:00]} 41. Kg1 {[%emt 0:02:03]} Qh4 {[%emt 0:04:50]} 42. Qg2 {[%emt 0:02:58]} Qf6 {[%emt 0:00:45]} 43. Qe2 {[%emt 0:03:41]} Qh4 {[%emt 0:00:03]} 1/2-1/2